[Event "10th Iberoamericano-ch 2024"]
[Site "Linares"]
[Date "2024.09.25"]
[Round "1.1"]
[White "Vallejo Pons, Francisco"]
[Black "Bendayan Claros, Aaron"]
[Result "1-0"]
[ECO "A01"]
[WhiteElo "2657"]
[BlackElo "2200"]
[Annotator "TA"]
[PlyCount "85"]
[EventDate "2024.09.25"]
[EventType "swiss"]
[EventCountry "ESP"]
[SourceTitle "playchess.com"]
[Source "ChessBase"]
[SourceQuality "1"]
[TimeControl "5400+30"]

{[%evp 9,85,6,0,-4,24,16,34,27,78,72,77,72,91,97,94,91,119,99,104,83,97,100,112,104,123,76,110,58,100,88,143,132,147,121,213,213,350,343,311,282,296,285,293,301,303,303,291,287,341,315,334,317,387,389,381,398,410,412,416,414,414,408,424,539,539,539,532,489,580,573,514,500,1152,1051,29979,2693,2218,1840]} 1. b3 {[%emt 0:00:08]} e5 {[%emt 0:00:14]} 2. Bb2 {[%emt 0:00:06]} Nc6 {[%emt 0:00:12]} 3. c4 {[%emt 0:00:08]} g6 {[%emt 0:07:03]} 4. Nc3 {[%emt 0:02:22]} Bg7 {[%emt 0:00:18]} 5. g3 {[%emt 0:00:08]} d6 {[%emt 0:03:01]} 6. Bg2 {[%emt 0:00:58]} Be6 {[%emt 0:00:54]} 7. Nf3 {[%emt 0:05:35]} f5 {[%emt 0:05:48]} 8. d4 {[%emt 0:06:19][%cal Bd2d4,Bd4d5][%mdl 32] White is slightly better.} e4 {[%emt 0:02:23] [#]} (8... exd4 $11 9. Nd5 Nf6) 9. d5 $1 $16 {[%emt 0:03:42]} exf3 {[%emt 0:00:13]} 10. exf3 {[%emt 0:13:27][%cal Be2f3,Bf3f4][%mdl 32]} Bd7 {[%emt 0:15:20][%cal Be6d7,Bd7c6,Bc6e8,Be8f7][%mdl 32]} 11. dxc6 {[%emt 0:00:17]} Bxc6 {[%emt 0:00:51]} 12. O-O {[%emt 0:00:11]} Ne7 {[%emt 0:08:51]} 13. b4 {[%emt 0:02:13][%cal Bb3b4,Bb4b5][%mdl 32]} O-O {[%emt 0:12:07]} 14. b5 {[%emt 0:01:45]} Be8 {[%emt 0:00:10]} 15. f4 {[%emt 0:07:06]} Rb8 {[%emt 0:00:36]} 16. Qd3 {[%emt 0:09:41]} Bf7 {[%emt 0:04:45]} 17. Rad1 $36 {[%emt 0:00:32][%mdl 2048] Keeping Black busy. White is more active.} (17. Rfd1 $142) 17... a6 {[%emt 0:03:19]} 18. a4 {[%emt 0:00:54]} ({Better is} 18. Rfe1 $16) 18... axb5 {[%emt 0:00:34]} 19. axb5 {[%emt 0:01:50]} b6 {[%emt 0:13:25]} ({Black should play} 19... Re8) 20. Na4 {[%emt 0:07:21][%cal Bc3a4,Ba4b2,Bb2d3,Bd3b4,Bb4a6][%mdl 32]} Bxb2 {[%emt 0:02:22]} 21. Nxb2 {[%emt 0:01:05]} Kg7 {[%emt 0:00:11]} (21... h6 $16 {was necessary.} 22. Qc3 Kh7) 22. Qc3+ $18 {[%emt 0:02:57]} Kh6 {[%emt 0:01:21]} (22... Kg8 $142 23. Nd3 h6) 23. h3 {[%emt 0:02:05] aiming for g4.} Be6 {[%emt 0:04:59]} 24. Rfe1 {[%emt 0:03:42]} Bd7 {[%emt 0:01:30]} 25. Nd3 {[%emt 0:02:39]} Ng8 {[%emt 0:00:47]} 26. Nb4 {[%emt 0:04:07]} Qf6 {[%emt 0:01:09]} 27. Qxf6 {[%emt 0:10:09]} Nxf6 {[%emt 0:01:11] [#]} 28. Na6 $1 {[%emt 0:00:03][%csl LRb8,LRc7]} Rbe8 {[%emt 0:01:14]} 29. Nxc7 {[%emt 0:00:52]} Rxe1+ {[%emt 0:00:31]} 30. Rxe1 {[%emt 0:00:01]} Rc8 {[%emt 0:00:12]} 31. Nd5 {[%emt 0:01:38]} Nxd5 {[%emt 0:01:11]} 32. Bxd5 {[%emt 0:00:03][%mdl 4096] Endgame. KRB-KRB} Re8 {[%emt 0:02:17]} 33. Ra1 {[%emt 0:00:08]} Be6 {[%emt 0:00:53]} 34. Bxe6 {[%emt 0:02:20]} Rxe6 {[%emt 0:01:22] KR-KR} 35. Ra6 {[%emt 0:00:27]} Re4 {[%emt 0:01:13]} 36. Rxb6 {[%emt 0:00:08]} Rxc4 {[%emt 0:00:12]} 37. Rxd6 {[%emt 0:00:06]} Rb4 {[%emt 0:00:17]} 38. b6 {[%emt 0:03:19]} Rb3 {[%emt 0:05:37]} 39. Kg2 {[%emt 0:00:04]} Rb4 {[%emt 0:00:48]} 40. Rc6 {[%emt 0:00:29]} Rb3 {[%emt 0:00:37]} (40... Kg7 $142 41. Rc7+ Kf6) 41. g4 {[%emt 0:01:52]} Rb4 {[%emt 0:00:31]} 42. Kg3 {[%emt 0:00:40]} (42. g5+ $142 Kg7 43. Rc7+ Kf8 44. b7 (44. Rxh7 Rxb6 45. h4 Rb4 $18) 44... Kg8 45. Rc8+ Kf7 46. b8=Q (46. b8=B Rb5 $18) 46... Rxb8 47. Rxb8) 42... Rb3+ {[%emt 0:00:29]} 43. f3 {[%emt 0:00:21] White took control after the opening.   Weighted Error Value: White=0.07 (flawless) /Black=0.46.  Mistake:       	White=2     	Black=5      Inaccurate:     	---       	Black=4      OK:         	White=18    	Black=14     Best:        	White=3     	---        Strong:       	White=2     	---} 1-0

[Event "10th Iberoamericano-ch 2024"]
[Site "Linares"]
[Date "2024.09.25"]
[Round "1.2"]
[White "Vehi Bach, Victor Manuel"]
[Black "Pichot, Alan"]
[Result "0-1"]
[ECO "C48"]
[WhiteElo "2191"]
[BlackElo "2628"]
[Annotator "TA"]
[PlyCount "108"]
[EventDate "2024.09.25"]
[EventType "swiss"]
[EventCountry "ESP"]
[SourceTitle "playchess.com"]
[Source "ChessBase"]
[SourceQuality "1"]
[TimeControl "5400+30"]

{[%evp 9,108,0,0,0,0,0,6,-16,0,-4,0,-29,-27,-27,0,-2,0,0,0,-5,-14,-13,0,-51,-40,-56,-28,-32,-29,-23,-9,-18,-8,-43,0,-23,-27,-25,-27,-31,-27,-46,-33,-30,-17,-16,0,-16,-29,-66,8,11,8,-61,-66,-67,-73,-70,-62,-72,-65,-62,-67,-71,-71,-75,-16,-7,-8,-10,-15,-78,-79,-79,-79,-79,-79,-79,-64,-79,-8,-8,-8,-188,-77,-124,-78,-274,-292,-1760,-1731,-2052,-2808,-12839,-8468,-10869,-2551,-29948,-11624,-6091,-5277]} 1. e4 {[%emt 0:00:02]} e5 {[%emt 0:00:21]} 2. Nf3 {[%emt 0:00:08]} Nc6 {[%emt 0:00:11]} 3. Nc3 {[%emt 0:00:20]} Nf6 {[%emt 0:00:13]} 4. Bb5 {[%emt 0:00:24]} Nd4 {[%emt 0:00:31]} 5. O-O {[%emt 0:01:25]} c6 {[%emt 0:00:36]} 6. Bd3 {[%emt 0:00:30]} Nxf3+ {[%emt 0:00:39]} 7. Qxf3 {[%emt 0:00:09]} d6 {[%emt 0:00:17]} 8. Be2 {[%emt 0:02:04] The position is equal.} g6 {[%emt 0:00:29]} 9. d3 {[%emt 0:03:57]} Nh5 {[%emt 0:00:57]} 10. g3 {[%emt 0:00:49]} Ng7 {[%emt 0:01:11]} 11. Qg2 {[%emt 0:00:23]} Be6 {[%emt 0:03:10]} 12. f4 {[%emt 0:04:51]} Qd7 {[%emt 0:03:36]} 13. Qf2 {[%emt 0:02:43]} Be7 {[%emt 0:12:52]} 14. Be3 {[%emt 0:15:43]} exf4 {[%emt 0:08:56]} 15. gxf4 {[%emt 0:16:38]} f5 {[%emt 0:00:56]} 16. Bf3 {[%emt 0:08:08]} (16. Bxa7 $11 b5 17. Bd4) 16... O-O $15 {[%emt 0:01:41]} 17. Ne2 {[%emt 0:00:58]} Rf7 {[%emt 0:12:11]} 18. b3 {[%emt 0:06:10]} Raf8 {[%emt 0:02:48]} 19. c4 {[%emt 0:02:38]} fxe4 {[%emt 0:04:50]} 20. dxe4 {[%emt 0:00:13][%cal Oa1d1]} Bh3 {[%emt 0:00:57]} 21. Bg2 {[%emt 0:03:37]} (21. Rfd1 $5) 21... Nh5 {[%emt 0:04:50][%cal Bg7h5,Bh5f6,Bf6g4][%mdl 32]} 22. Bxh3 {[%emt 0:00:22]} (22. f5 $5 Bxf5 23. exf5 Rxf5 24. Qe1 Rxf1+ 25. Bxf1 $16) 22... Qxh3 {[%emt 0:00:08]} 23. Qf3 {[%emt 0:00:03]} Qxf3 {[%emt 0:07:19]} 24. Rxf3 {[%emt 0:00:09]} Nf6 {[%emt 0:00:16]} 25. Nc3 {[%emt 0:06:47][%cal Oa1d1]} Ng4 {[%emt 0:01:10]} 26. Bd2 {[%emt 0:00:13]} Bg5 {[%emt 0:01:28][%cal Rg5f4]} 27. Ne2 {[%emt 0:05:22]} Bh6 {[%emt 0:02:32]} (27... Bh4 $5 {[%cal Rf8e8]}) 28. Re1 {[%emt 0:07:52]} Re8 {[%emt 0:01:29]} 29. Ng3 {[%emt 0:00:45]} Ref8 {[%emt 0:13:22] Black is more active.} (29... Ne5 $15 30. fxe5 Bxd2 31. Rxf7 Kxf7 32. Rf1+ Ke6 33. exd6 Bb4 (33... Kxd6 $2 34. Rd1 $18)) 30. Ref1 $11 {[%emt 0:04:38]} Re8 {[%emt 0:03:55]} 31. Re1 {[%emt 0:00:51]} ({White should try} 31. Kg2 $11) 31... Ne5 $15 {[%emt 0:05:35]} 32. fxe5 {[%emt 0:00:15]} Bxd2 {[%emt 0:00:06]} 33. Rxf7 {[%emt 0:00:05]} Kxf7 {[%emt 0:00:07][%mdl 4096] Endgame. KRB-KRN} 34. Rf1+ {[%emt 0:01:00]} Ke6 $1 {[%emt 0:00:07]} 35. exd6 {[%emt 0:00:12][%cal Oe4e5]} Bb4 {[%emt 0:01:24]} (35... Kxd6 $2 {is the wrong capture.} 36. Rd1 $18) 36. e5 {[%emt 0:03:11]} Kxe5 {[%emt 0:00:36]} 37. Rf7 {[%emt 0:01:07][%csl LRb7,LRh7] [#]} Bxd6 {[%emt 0:00:07]} (37... h5 $1 $17 {next ...h4 is good for Black.} 38. Rxb7 (38. d7 Rd8 $11) 38... Bxd6) 38. Rxh7 $11 {[%emt 0:00:31]} Be7 {[%emt 0:02:38]} 39. Kg2 {[%emt 0:00:55]} Kd4 {[%emt 0:00:49]} 40. Rg7 {[%emt 0:00:38]} (40. Rf7 $11 {remains equal.}) 40... Kc3 $17 {[%emt 0:01:48]} 41. Rxg6 {[%emt 0:00:06] Re6 is the strong threat.} Bb4 {[%emt 0:01:19]} 42. Rf6 {[%emt 0:02:19] [#]} Kb2 $1 {[%emt 0:01:22][%mdl 1024] Black has strong compensation.} 43. Rf2+ {[%emt 0:00:06]} Ka3 {[%emt 0:00:16]} 44. Nf5 {[%emt 0:01:57]} Bc5 {[%emt 0:00:59]} (44... Rf8 $17 {And now ...Bc5 would win.} 45. h4 Bc5) 45. Rd2 {[%emt 0:00:25]} Re5 {[%emt 0:00:31]} 46. Nh4 {[%emt 0:00:33]} (46. Nd4 $1 $11) 46... Re1 {[%emt 0:00:21]} (46... Bb4 $19 {has better winning chances.} 47. Rf2 Be1) 47. Nf3 {[%emt 0:00:24]} (47. Nf5 $142) 47... Ra1 {[%emt 0:00:10]} ({Black should play} 47... Bb4 48. Rd3 Re8) 48. h4 $2 {[%emt 0:00:43]} (48. b4 $17 Bxb4 49. Rd7) 48... Rxa2 $19 {[%emt 0:00:27]} 49. h5 $2 {[%emt 0:00:50]} (49. Kf1) 49... Kxb3 {[%emt 0:01:03]} 50. Rxa2 {[%emt 0:00:06]} Kxa2 {[%emt 0:00:05]} 51. h6 {[%emt 0:00:03]} Bf8 {[%emt 0:00:19]} 52. h7 {[%emt 0:00:03]} Bg7 {[%emt 0:00:04] ( -> ...a5)} 53. Nh4 {[%emt 0:01:53]} a5 {[%emt 0:00:41]} (53... Kb3 $142 54. Nf5 Bh8 55. Nd6 a5 56. Nf7 Bg7 57. Nd8 a4 (57... Kxc4 $2 58. Nxb7 a4 59. Nd6+ Kb3 60. h8=B $19) 58. Ne6 Bh8 59. Kg3 a3 (59... Kxc4 $2 60. Nd8 $19) 60. Nc5+ Kxc4 61. Nxb7 a2 62. Nd6+ Kb3 63. Ne4 a1=Q (63... a1=B $2 64. Kf3 $19) 64. Nd2+ Ka2 65. Ne4 Qe5+ 66. Kf3 Qd5 67. Kf4 Be5+ 68. Kf5 Bd6+ 69. Kf6 Qxe4 (69... Be5+ {gets mated.} 70. Kf5 Bd6+ 71. Kf6 Qxe4 72. h8=Q Be5+ 73. Ke7 Bxh8+ 74. Kf7 c5 75. Kg8 Qe8+ 76. Kh7 Bf6 77. Kh6 Qg8 78. Kh5 Qg5#) 70. h8=Q Be5+ 71. Ke7 Bxh8+ 72. Kf7 Ba1 73. Kf8 Qh7 74. Ke8 Bf6 75. Kf8 Qg7+ 76. Ke8 Qe7#) 54. Nf5 {[%emt 0:00:06]} Bh8 {[%emt 0:00:09] Weighted Error Value: White=0.64/Black=0.23 (precise) .  Loses game:     	White=2     	---        Mistake:       	White=5     	Black=5      Inaccurate:     	White=3     	Black=3      OK:         	White=17    	Black=15     Best:        	White=3     	Black=6      Strong:       	---       	Black=2} 0-1

[Event "10th Iberoamericano-ch 2024"]
[Site "Linares"]
[Date "2024.09.25"]
[Round "1.3"]
[White "Henriquez Villagra, Cristobal"]
[Black "Prado Acebo, Ines"]
[Result "1/2-1/2"]
[ECO "B90"]
[WhiteElo "2604"]
[BlackElo "2189"]
[Annotator "TA"]
[PlyCount "120"]
[EventDate "2024.09.25"]
[EventType "swiss"]
[EventCountry "ESP"]
[SourceTitle "playchess.com"]
[Source "ChessBase"]
[SourceQuality "1"]
[TimeControl "5400+30"]

{[%evp 12,120,28,20,35,22,53,56,47,51,56,46,47,51,39,34,79,79,94,95,86,51,136,129,134,133,135,74,72,82,65,62,78,40,37,0,0,-2,37,39,35,33,38,41,86,87,93,87,141,144,144,104,117,110,136,107,104,103,129,137,132,93,70,69,69,60,62,25,52,29,56,57,55,43,230,230,367,186,297,146,662,637,910,542,596,586,618,561,433,246,645,640,640,230,228,212,224,0,76,0,229,233,220,0,0,0,0,0,0,0,0]} 1. e4 {[%emt 0:01:43]} c5 {[%emt 0:00:08]} 2. Nf3 {[%emt 0:00:06]} d6 {[%emt 0:00:06]} 3. d4 {[%emt 0:02:21]} cxd4 {[%emt 0:00:09]} 4. Nxd4 {[%emt 0:00:05]} Nf6 {[%emt 0:00:10]} 5. Nc3 {[%emt 0:00:04]} a6 {[%emt 0:00:07]} 6. h3 {[%emt 0:00:07]} e6 {[%emt 0:00:12]} 7. g4 {[%emt 0:00:17][%cal Bg2g4,Bg4g5][%mdl 32]} d5 {[%emt 0:00:11]} 8. Nde2 {[%emt 0:09:27]} h5 {[%emt 0:01:07]} 9. g5 {[%emt 0:01:35]} Nxe4 {[%emt 0:01:11] White is slightly better.} 10. Nxe4 {[%emt 0:00:18]} dxe4 {[%emt 0:00:08]} 11. Qxd8+ {[%emt 0:00:23]} Kxd8 {[%emt 0:00:07]} 12. Bg2 {[%emt 0:00:09]} Bd7 {[%emt 0:15:08]} 13. Be3 {[%emt 0:21:07][%cal Oe1c1][%mdl 1024] White has compensation.} Bd6 {[%emt 0:21:58]} 14. O-O-O {[%emt 0:01:04]} Ke7 {[%emt 0:00:21]} 15. Rd2 {[%emt 0:06:29][%cal Oh1d1]} Rc8 {[%emt 0:03:34]} 16. g6 {[%emt 0:08:01]} Bc5 {[%emt 0:12:27]} (16... Bc6 $14) 17. gxf7 $16 {[%emt 0:00:57]} (17. Bxe4 Bxe3 18. fxe3 Bc6 19. Bxc6 Nxc6) 17... Bxe3 {[%emt 0:03:12]} 18. fxe3 {[%emt 0:00:06]} Bc6 {[%emt 0:03:59][%cal Ob8d7]} 19. Rhd1 {[%emt 0:08:57]} ({Better is} 19. h4) 19... Nd7 {[%emt 0:14:03][%cal Od7e5] [#]} 20. Bxe4 $1 {[%emt 0:00:30] White is much more active.} Ne5 {[%emt 0:00:31]} 21. Bxc6 {[%emt 0:00:10]} Rxc6 {[%emt 0:00:19]} 22. Nd4 {[%emt 0:00:23]} Rc5 {[%emt 0:05:42][%cal Og7g5]} 23. b4 {[%emt 0:00:48]} Rc3 {[%emt 0:03:05]} 24. Rg2 $132 {[%emt 0:06:59][%mdl 2048] White is fighting back} Rf8 {[%emt 0:03:35]} 25. Rxg7 {[%emt 0:02:31]} Rxf7 {[%emt 0:02:00]} 26. Rg5 {[%emt 0:06:49][%csl LRe5,LRh5]} Rxe3 {[%emt 0:04:18]} 27. Rxh5 {[%emt 0:00:23]} Nc4 {[%emt 0:01:03]} 28. Rc5 {[%emt 0:00:59]} Nb6 {[%emt 0:01:33]} 29. h4 {[%emt 0:00:46][%cal Bh3h4,Bh4h5][%mdl 32]} Re4 {[%emt 0:01:48]} (29... Nd5 $142) 30. h5 {[%emt 0:00:45]} Kf8 {[%emt 0:02:22]} 31. b5 {[%emt 0:08:18]} axb5 {[%emt 0:00:31]} 32. Nxb5 {[%emt 0:00:34] Hoping for Nd6.} Rf5 {[%emt 0:00:39]} 33. Rxf5+ {[%emt 0:05:39]} exf5 {[%emt 0:00:01][%mdl 4096] Endgame. KRN-KRN} 34. Rf1 {[%emt 0:00:07]} Nc4 {[%emt 0:01:05] Prevents Nd6} 35. Rxf5+ {[%emt 0:02:11]} Ke7 {[%emt 0:00:02][%cal Re4e1]} 36. c3 $1 {[%emt 0:01:01]} Rh4 {[%emt 0:00:42]} 37. Rg5 {[%emt 0:00:49]} Kf6 {[%emt 0:00:47]} 38. Rc5 {[%emt 0:01:08][%cal Oh5h6]} b6 {[%emt 0:00:26]} 39. Rc6+ {[%emt 0:00:05]} Ke5 $1 {[%emt 0:00:15][%cal Oe5d5]} 40. h6 {[%emt 0:01:20]} Kd5 {[%emt 0:00:06]} 41. Rg6 {[%emt 0:00:51]} Rh2 {[%emt 0:01:01]} 42. a4 {[%emt 0:01:21]} Ne5 $2 {[%emt 0:00:49]} (42... Rh1+ $14 43. Kc2 Rh2+ 44. Kd1 Nb2+ 45. Ke1 Nxa4) 43. Rxb6 $18 {[%emt 0:00:34]} Kc4 {[%emt 0:00:25]} (43... Kc5 {was called for.}) 44. Kd1 {[%emt 0:00:52]} (44. a5 $142 {Black must now prevent a6.} Kb3 45. Nd6+ Kxc3 46. Ne4+ Kd4 47. Ng5) 44... Ng4 {[%emt 0:00:19]} (44... Kc5 $142) 45. Rc6+ {[%emt 0:01:24]} (45. a5 $1 $18 {[%cal Ra5a6]} Kc5 46. Nd4 Nxh6 47. Rg6) 45... Kd3 $2 {[%emt 0:00:42][%mdl 8192]} (45... Kd5 $16) 46. Rd6+ {[%emt 0:00:04]} Ke3 {[%emt 0:00:06]} 47. Kc1 {[%emt 0:00:34]} Nxh6 {[%emt 0:00:24]} 48. a5 {[%emt 0:00:32] And now a6 would win.} Nf5 {[%emt 0:00:20]} 49. Rf6 {[%emt 0:00:58]} Ng3 {[%emt 0:00:52]} 50. a6 {[%emt 0:00:21]} (50. Nd4 $142 {Rf3+ would now be deadly.} Ke4 51. a6) 50... Ra2 $2 {[%emt 0:00:44]} (50... Ne4) 51. Kb1 {[%emt 0:01:13]} Ra5 {[%emt 0:00:23]} 52. Rb6 {[%emt 0:00:05]} (52. Nd4) 52... Ne4 {[%emt 0:00:10][%cal Oa5b5]} 53. Kc2 {[%emt 0:00:23] a7 is the strong threat.} Ra2+ {[%emt 0:00:22] [#]} 54. Kb1 {[%emt 0:00:56]} ({Weaker is} 54. Kb3 Rxa6 55. Rb8 (55. Rxa6 Nc5+ 56. Kc4 Nxa6 $11) 55... Nc5+ 56. Kc4 Nd3 $11) (54. Kc1 $1 $18 {is the precise move to win.}) 54... Ra5 $16 {[%emt 0:00:04][%cal Oa5b5]} 55. Kc2 $2 {[%emt 0:01:42]} (55. Nc7 $16 Nxc3+ 56. Kc2) 55... Ra2+ $1 $18 {[%emt 0:00:04] [#]} 56. Kc1 $1 {[%emt 0:00:08]} ({Less strong is} 56. Kb3 Rxa6 57. Rb8 (57. Rxa6 Nc5+ 58. Kc4 Nxa6 $11) 57... Nc5+ 58. Kc4 Nd3 $11) 56... Kd3 {[%emt 0:00:17]} 57. Rc6 $2 {[%emt 0:00:15]} (57. Kb1 $18 Ra5 58. Kb2) 57... Rc2+ $11 {[%emt 0:00:22] The position is equal.} 58. Kb1 {[%emt 0:00:43] Threatens to win with Ka1.} Nd2+ {[%emt 0:00:09]} 59. Ka1 {[%emt 0:00:02] aiming for Rd6+.} Nb3+ {[%emt 0:00:45]} 60. Kb1 {[%emt 0:00:03] Intending Rd6+ and mate.} Nd2+ {Weighted Error Value: White=0.33/Black=0.49.  Loses game:     	---       	Black=2      Missed win:     	White=1     	---        Mistake:       	White=5     	Black=5      Inaccurate:     	White=4     	Black=6      OK:         	White=15    	Black=17     Best:        	White=3     	Black=8      Strong:       	White=2     	Black=2} 1/2-1/2

[Event "10th Iberoamericano-ch 2024"]
[Site "Linares"]
[Date "2024.09.25"]
[Round "1.4"]
[White "Rodriguez Redondo, Adhara"]
[Black "Quesada Perez, Luis Ernesto"]
[Result "1/2-1/2"]
[ECO "B92"]
[WhiteElo "2184"]
[BlackElo "2578"]
[Annotator "TA"]
[PlyCount "116"]
[EventDate "2024.09.25"]
[EventType "swiss"]
[EventCountry "ESP"]
[SourceTitle "playchess.com"]
[Source "ChessBase"]
[SourceQuality "1"]
[TimeControl "5400+30"]

{[%evp 15,116,0,0,0,25,14,13,18,25,0,18,27,31,37,39,41,58,56,70,56,64,37,58,66,94,71,59,0,0,0,14,0,0,-15,-31,-25,-23,-35,-23,-17,-22,-16,-15,-40,-24,-17,10,10,10,10,12,14,14,14,16,8,8,0,0,0,0,0,0,0,0,0,0,0,0,0,0,0,0,0,0,0,0,0,0,0,0,0,0,0,0,0,0,0,0,0,0,0,0,0,0,0,0,0,0,0,0,0,0]} 1. e4 {[%emt 0:00:04]} c5 {[%emt 0:03:35]} 2. Nf3 {[%emt 0:00:05]} d6 {[%emt 0:00:04]} 3. d4 {[%emt 0:00:04]} cxd4 {[%emt 0:00:05]} 4. Nxd4 {[%emt 0:00:04]} Nf6 {[%emt 0:00:06]} 5. Nc3 {[%emt 0:00:04]} a6 {[%emt 0:02:58]} 6. Be2 {[%emt 0:00:37]} e5 {[%emt 0:00:19]} 7. Nf3 {[%emt 0:00:05][%cal Bd4f3,Bf3d2,Bd2c4][%mdl 32]} Be7 {[%emt 0:00:05]} 8. Bg5 {[%emt 0:00:14]} Nbd7 {[%emt 0:00:18]} 9. a4 {[%emt 0:00:11]} h6 {[%emt 0:00:04]} 10. Be3 {[%emt 0:00:11]} Qc7 {[%emt 0:00:06]} 11. Nd2 {[%emt 0:04:40]} Nc5 {[%emt 0:02:55]} 12. Nc4 {[%emt 0:16:01]} Be6 {[%emt 0:05:30]} 13. Nd5 {[%emt 0:02:58]} Nxd5 {[%emt 0:00:03]} 14. exd5 {[%emt 0:00:07]} Bf5 {[%emt 0:00:04]} 15. a5 {[%emt 0:03:54]} O-O {[%emt 0:03:32]} 16. Nb6 {[%emt 0:03:51]} Rae8 {[%emt 0:00:03]} 17. O-O {[%emt 0:03:20]} Bg6 {[%emt 0:00:33]} 18. f3 {[%emt 0:03:26]} f5 {[%emt 0:00:09]} 19. b4 {[%emt 0:02:42]} f4 {[%emt 0:02:52]} 20. Bf2 {[%emt 0:03:25]} Nd7 {[%emt 0:00:17]} 21. Bd3 {[%emt 0:08:45]} (21. c4 $14) 21... e4 $11 {[%emt 0:01:42]} 22. fxe4 {[%emt 0:09:15]} Bf6 {[%emt 0:09:10] [#]} 23. Nxd7 $1 {[%emt 0:12:05]} Qxd7 {[%emt 0:00:02]} 24. e5 {[%emt 0:02:00]} Bxd3 {[%emt 0:00:12]} (24... Bxe5 $2 25. Bxg6 Bxa1 26. Bxe8 (26. Qxa1 Re2 $18) 26... Qxe8 27. Qxa1 $18) 25. Qxd3 {[%emt 0:01:49]} Bxe5 {[%emt 0:02:31]} 26. Bd4 {[%emt 0:03:38]} (26. Rae1 {is more complex.} f3 27. Re4 fxg2 28. Kxg2 Rc8 29. c4) 26... Qf5 {[%emt 0:00:32]} 27. Bxe5 {[%emt 0:05:11]} Qxd3 {[%emt 0:00:04]} 28. cxd3 {[%emt 0:00:06]} Rxe5 {[%emt 0:00:08][%mdl 4096] Endgame. KRR-KRR} 29. Rac1 {[%emt 0:01:48]} Rxd5 {[%emt 0:07:16][%cal Od5b5]} 30. Rc7 {[%emt 0:00:39]} Rb5 {[%emt 0:00:15] The position is equal.} 31. Re1 $1 {[%emt 0:00:47]} f3 {[%emt 0:15:42][%cal Bf4f3,Bf3f2][%mdl 32] [#] White must now prevent ...f2+.} (31... Rxb4 32. Ree7 Rb8 (32... Rb1+ 33. Kf2 $16) 33. Rxg7+ Kh8 34. Rh7+ Kg8 35. Kf2 $14 (35. Rxh6 Ra4 $14) (35. Rcg7+ Kf8 $16)) 32. Ree7 {[%emt 0:01:58][%csl LRb7,LRg7]} f2+ {[%emt 0:00:17]} (32... Rxb4 33. Rxg7+ Kh8 34. Rh7+ Kg8 35. Rcg7#) 33. Kf1 {[%emt 0:00:03]} Rg5 {[%emt 0:00:27][%cal Og5g2] Strongly threatening ...Rxg2!} 34. g3 {[%emt 0:00:18]} ({Much worse is} 34. Rxb7 Rxg2 $17) 34... h5 $1 {[%emt 0:00:14][%cal Bh6h5,Bh5h4][%mdl 32]} 35. Rxb7 {[%emt 0:06:07] White wants to play Re4.} h4 $1 $132 {[%emt 0:00:27][%mdl 2048] Black is fighting back} 36. Re2 {[%emt 0:01:43]} (36. gxh4 {gets mated.} Rg1+ 37. Ke2 f1=Q+ (37... f1=B+ $2 38. Ke3 $19) 38. Kd2 Qc1+ 39. Ke2 Rg2#) 36... Rxg3 {[%emt 0:00:47][%csl Gf2][%cal Rg3g1]} 37. Rxf2 {[%emt 0:01:46]} Rxf2+ {[%emt 0:01:08]} (37... Rxd3 $2 {is the wrong capture.} 38. Rxf8+ Kxf8 39. b5 $18) 38. Kxf2 {[%emt 0:00:01]} Rxd3 {[%emt 0:00:17] KR-KR} 39. Rb6 {[%emt 0:01:18]} Rd2+ {[%emt 0:00:45]} 40. Kg1 {[%emt 0:00:49]} Rb2 {[%emt 0:04:33]} 41. Rxa6 {[%emt 0:00:36]} Rxb4 {[%emt 0:00:03]} 42. Rxd6 {[%emt 0:00:07]} Ra4 {[%emt 0:00:12]} 43. a6 {[%emt 0:01:23]} Kh7 {[%emt 0:00:08]} 44. Kg2 {[%emt 0:00:36]} g6 {[%emt 0:01:58]} 45. Rd7+ {[%emt 0:02:30]} Kh6 {[%emt 0:00:04]} 46. a7 {[%emt 0:00:34]} Kh5 {[%emt 0:00:26]} 47. h3 {[%emt 0:00:50]} Ra3 {[%emt 0:00:18]} 48. Rb7 {[%emt 0:00:35]} Ra2+ {[%emt 0:01:06]} 49. Kf3 {[%emt 0:00:26]} g5 {[%emt 0:00:31]} 50. Rh7+ {[%emt 0:00:32]} Kg6 {[%emt 0:00:07]} 51. Rb7 {[%emt 0:00:06]} Ra3+ {[%emt 0:00:09]} 52. Kg2 {[%emt 0:00:30]} g4 {[%emt 0:00:21]} 53. hxg4 {[%emt 0:00:26]} Kg5 {[%emt 0:00:08]} 54. Rg7+ {[%emt 0:00:41]} Kf4 {[%emt 0:00:33]} 55. Rf7+ {[%emt 0:00:20]} Kxg4 {[%emt 0:00:11]} 56. Rg7+ {[%emt 0:00:12]} Kf5 {[%emt 0:00:18]} 57. Rf7+ {[%emt 0:00:35]} Ke6 {[%emt 0:00:09]} 58. Rh7 {[%emt 0:00:27]} h3+ {Weighted Error Value: White=0.05 (flawless) /Black=0.04 (flawless) .  Mistake:       	White=1     	---        Inaccurate:     	White=1     	Black=2      OK:         	White=14    	Black=28     Best:        	White=4     	Black=2      Strong:       	White=1     	Black=2} 1/2-1/2